bitfinex/quotes_SOLUSD_20251103
["timestamp","ask_amount","ask_price","bid_price","bid_amount"]
[1762195509171,3.91678059,168.52,168.47,20.91511739]
[1762195509468,3.91678059,168.51,168.47,20.91511739]
[1762195509645,3.91714496,168.52,168.48,0.14]
[1762195509844,3.91714496,168.55,168.49,20.77274615]
[1762195510054,3.91714496,168.54,168.49,20.77274615]
[1762195510251,3.91714496,168.53,168.49,20.77274615]
[1762195510463,4.61714496,168.54,168.49,20.77274615]
[1762195510659,0.7,168.54,168.49,20.77274615]
[1762195510863,3.91738894,168.53,168.49,20.77274615]
[1762195511036,0.7,168.54,168.47,5.93563821]
[1762195511239,12.16080796,168.53,168.47,5.93563821]
[1762195511468,3.91704097,168.52,168.47,5.93563821]
[1762195511641,3.91704097,168.51,168.47,5.93563821]
[1762195511838,0.7,168.51,168.47,14.83943728]
[1762195512247,0.7,168.5,168.46,5.93612727]
[1762195512545,4.61688843,168.53,168.47,0.14]
[1762195512749,0.7,168.53,168.47,0.14]
[1762195513073,0.7,168.55,168.48,62.26]
[1762195513367,0.7,168.55,168.49,0.14]
[1762195514258,0.7,168.55,168.5,20.77151335]
[1762195514640,3.91658462,168.54,168.5,20.77151335]
[1762195514845,0.7,168.55,168.5,20.91151335]
[1762195515349,3.91611445,168.54,168.5,20.91151335]
[1762195515539,3.91611445,168.54,168.5,20.77151335]
[1762195516155,0.7,168.55,168.5,20.77151335]
[1762195516343,4.61576133,168.57,168.51,0.14]
[1762195516541,3.91576133,168.56,168.51,0.14]
[1762195516752,0.7,168.57,168.51,0.14]
[1762195516949,3.9154541,168.56,168.51,0.14]
[1762195517256,3.91475735,168.55,168.5,20.77151335]
[1762195517460,4.61475735,168.56,168.5,20.77151335]
[1762195517770,3.91475735,168.55,168.5,20.77151335]
[1762195517949,3.91475735,168.56,168.5,20.77151335]
[1762195518153,3.91475735,168.55,168.5,20.77151335]
[1762195518349,3.91117084,168.54,168.5,5.9347181]
[1762195518663,0.7,168.55,168.5,20.91151335]
[1762195518862,4.61117084,168.55,168.5,20.91151335]
[1762195519062,3.91117084,168.54,168.5,20.91151335]
[1762195519264,0.7,168.53,168.5,5.9347181]
[1762195519474,3.91117084,168.52,168.49,5.93499792]
[1762195519780,3.91122548,168.51,168.49,5.93499792]
[1762195519986,4.61122548,168.52,168.47,5.93577491]
[1762195520171,3.91122548,168.51,168.47,5.93577491]
[1762195520490,3.91122548,168.51,168.47,20.77521219]
[1762195520695,4.61122548,168.52,168.47,20.91521219]
[1762195520875,3.91419322,168.51,168.47,20.91521219]
[1762195521192,3.91419322,168.51,168.47,20.77521219]
[1762195521397,4.61419322,168.51,168.47,20.77521219]
[1762195521570,0.7,168.51,168.47,20.77521219]
[1762195521772,0.7,168.5,168.47,5.93577491]
[1762195522099,12.15796021,168.5,168.44,5.9368321]
[1762195522391,13.47918959,168.48,168.41,5.93788967]
[1762195522571,3.91284614,168.47,168.41,5.93788967]
[1762195522891,4.61127549,168.47,168.41,20.92248602]
[1762195523191,4.61127549,168.47,168.41,20.78248602]
[1762195523767,0.7,168.49,168.42,0.14]
[1762195524079,3.91104958,168.48,168.42,0.14]
[1762195524283,3.91051094,168.48,168.43,20.78014604]
[1762195524668,12.96,168.49,168.43,20.92014604]
[1762195525593,3.91032435,168.48,168.43,20.92014604]
[1762195525978,4.61032435,168.48,168.43,20.92014604]
[1762195527095,4.61032435,168.48,168.43,20.78014604]
[1762195527096,4.61082384,168.48,168.43,20.78014604]
[1762195527298,0.7,168.47,168.43,5.93718458]
[1762195527475,3.91101805,168.46,168.36,5.93965312]
[1762195527804,7.54376699,168.44,168.36,20.78878593]
[1762195527982,7.54376699,168.42,168.36,5.93965312]
[1762195528169,7.54376699,168.42,168.31,5.94126799]
[1762195528170,7.54376699,168.4,168.31,5.94126799]
[1762195528368,7.54376699,168.37,168.31,5.94126799]
[1762195528585,12.26,168.37,168.31,5.94126799]
[1762195528782,0.7,168.38,168.31,5.94126799]
[1762195528987,12.26,168.39,168.32,9.92882769]
[1762195529370,0.7,168.38,168.31,20.79481204]
[1762195529586,0.7,168.38,168.31,20.93481204]
[1762195529974,0.7,168.38,168.32,0.14]
[1762195530173,12.26,168.39,168.31,20.79481204]
[1762195530174,0.7,168.37,168.31,9.78882769]
[1762195530370,0.7,168.37,168.31,0.14]
[1762195530575,0.7,168.37,168.31,5.94113955]
[1762195530792,17.85712267,168.39,168.32,0.14]
[1762195530999,12.26,168.39,168.32,0.14]
[1762195531179,12.26,168.39,168.31,5.94113955]
[1762195531180,4.89712267,168.36,168.31,5.94113955]
[1762195531391,4.89712267,168.35,168.29,0.24]
[1762195531579,12.26,168.34,168.29,6.04200937]
[1762195531775,12.28,168.33,168.29,6.18200937]
[1762195531980,12.28,168.33,168.29,21.03731865]
[1762195532175,12.28,168.33,168.29,20.89731865]
[1762195532612,12.28,168.33,168.29,6.18200937]
[1762195532810,12.28,168.33,168.29,20.89731865]
[1762195533112,12.28,168.33,168.29,0.1]
[1762195533312,0.66,168.32,168.29,0.1]
[1762195533520,5.55712267,168.32,168.29,0.1]
[1762195533812,0.66,168.32,168.29,0.1]
[1762195533984,4.89712267,168.3,168.29,0.1]
[1762195534303,4.89712267,168.3,168.19,14.86406593]
[1762195534304,20.592,168.25,168.14,18.02787034]
[1762195534519,17.85655603,168.29,168.14,23.97527439]
[1762195534520,12.42,168.24,168.14,23.97527439]
[1762195534812,5.55712267,168.28,168.15,50.34]
[1762195535109,13.1,168.27,168.18,9.78882769]
[1762195535322,20.592,168.32,168.18,9.78882769]
[1762195535498,14.68311295,168.36,168.19,0.34]
[1762195535499,4.53561931,168.31,168.19,0.34]
[1762195535690,12.46,168.3,168.2,9.78882769]
[1762195535888,20.592,168.34,168.25,0.14216157]
[1762195535889,0.66,168.34,168.25,0.14216157]
[1762195536092,0.66,168.37,168.27,0.14216157]
[1762195536324,0.66,168.37,168.28,0.34]
[1762195536325,13.16,168.37,168.28,0.34]
[1762195536521,13.16,168.37,168.29,20.79743299]
[1762195536813,0.66,168.37,168.3,10.12882769]
[1762195537013,31.63712267,168.41,168.3,10.12882769]
[1762195537014,0.66,168.39,168.3,10.12882769]
[1762195537307,5.55712267,168.39,168.3,0.34]
[1762195537705,19.73551064,168.45,168.29,33.29743299]
[1762195537706,4.89712267,168.36,168.29,0.34]
[1762195538018,12.52,168.37,168.29,0.34]
[1762195538231,4.89712267,168.36,168.29,0.34]
[1762195538732,0.66,168.37,168.3,20.79619725]
[1762195538918,0.66,168.38,168.31,0.34]
[1762195539085,0.66,168.38,168.3,20.79619725]
[1762195539595,5.55712267,168.38,168.3,20.79619725]
[1762195539806,0.66,168.38,168.3,21.13619725]
[1762195540315,4.89712267,168.36,168.3,5.94177064]
[1762195540490,0.66,168.38,168.31,0.34]
[1762195540932,12.54,168.39,168.31,0.34]
[1762195540933,0.66,168.41,168.32,12.56]
[1762195541216,0.66,168.41,168.31,10.12882769]
[1762195541390,5.55712267,168.41,168.32,22.68882769]
[1762195541592,5.55712267,168.41,168.32,10.12882769]
[1762195541932,0.66,168.41,168.33,0.34]
[1762195542638,0.66,168.41,168.34,5.94035879]
[1762195543320,5.55712267,168.41,168.34,20.79125578]
[1762195543627,4.89712267,168.4,168.34,20.79125578]
[1762195543937,0.66,168.4,168.34,20.79125578]
[1762195544137,0.66,168.4,168.34,5.94035879]
[1762195544426,0.66,168.39,168.34,5.94035879]
[1762195545203,0.66,168.39,168.33,14.85166729]
[1762195546616,0.66,168.41,168.34,0.34]
[1762195546916,0.66,168.41,168.33,14.85166729]
[1762195547305,0.66,168.41,168.32,10.12882769]
[1762195549945,0.66,168.41,168.33,20.79249093]
[1762195550814,13.22,168.43,168.34,22.64882769]
[1762195551029,0.66,168.42,168.34,22.64882769]
[1762195552014,0.66,168.42,168.35,20.79002079]
[1762195553039,20.592,168.44,168.35,20.79002079]
[1762195553236,0.66,168.45,168.36,10.12882769]
[1762195553538,0.66,168.45,168.37,12.86]
[1762195553917,0.66,168.45,168.38,0.34]
[1762195554131,0.66,168.45,168.39,20.78508224]
[1762195554332,3.88934985,168.46,168.39,5.93859492]
[1762195554637,0.66,168.44,168.39,5.93859492]
[1762195554816,0.66,168.44,168.39,20.78508224]
[1762195555820,0.66,168.44,168.39,14.84648732]
[1762195556040,4.54934985,168.46,168.39,14.84648732]
[1762195556338,0.66,168.45,168.39,15.18648732]
[1762195556641,4.84382345,168.52,168.4,0.34]
[1762195556812,3.89244014,168.52,168.44,9.78882769]
[1762195557015,0.66,168.54,168.45,12.52]
[1762195557209,0.66,168.54,168.46,0.34]
[1762195558041,3.89244014,168.55,168.47,20.77521219]
[1762195558225,0.66,168.54,168.48,9.78882769]
[1762195559537,13.38,168.56,168.48,10.12882769]
[1762195559830,0.66,168.55,168.51,20.77028069]
[1762195560945,0.2,168.56,168.51,20.77028069]
[1762195561325,0.2,168.56,168.52,10.12882769]
[1762195561521,0.2,168.56,168.52,22.66882769]
[1762195561726,0.2,168.56,168.53,0.34]
[1762195562040,0.2,168.56,168.54,5.9333096]
[1762195562545,5.79712267,168.56,168.48,20.592]
[1762195562936,0.7,168.55,168.48,20.932]
[1762195563923,0.7,168.55,168.41,50.34]
[1762195563924,4.89712267,168.52,168.41,50.34]
[1762195564124,4.89712267,168.51,168.43,14.84208249]
[1762195564435,3.89592233,168.52,168.43,14.84208249]
[1762195564637,16.43592233,168.51,168.43,14.84208249]
[1762195564845,3.89592233,168.5,168.44,0.34]
[1762195565150,0.7,168.53,168.44,22.66882769]
[1762195565351,0.7,168.52,168.44,12.54]
[1762195565647,9.493045,168.52,168.44,12.54]
[1762195565854,0.7,168.51,168.44,12.54]
[1762195566063,0.7,168.51,168.45,20.77767882]
[1762195566726,0.7,168.52,168.46,9.78882769]
[1762195567552,0.7,168.52,168.45,20.77767882]
[1762195568447,5.59712267,168.52,168.45,5.93647966]
[1762195568650,0.7,168.51,168.45,5.93647966]
[1762195568953,5.59712267,168.51,168.45,5.93647966]
[1762195569147,9.493045,168.51,168.45,5.93647966]
[1762195569350,0.7,168.5,168.45,5.93647966]
[1762195569848,12.52,168.53,168.45,20.77767882]
[1762195570051,4.58178885,168.52,168.45,21.11767882]
[1762195570247,0.7,168.52,168.45,14.84119916]
[1762195570437,0.7,168.51,168.45,14.84119916]
[1762195570636,0.7,168.51,168.44,5.9368321]
[1762195570940,5.59712267,168.51,168.44,5.9368321]
[1762195571139,0.7,168.51,168.44,5.9368321]
[1762195571448,0.7,168.51,168.42,20.78137987]
[1762195571449,0.7,168.5,168.42,20.78137987]
[1762195572654,4.58032247,168.5,168.42,20.78137987]
[1762195572854,4.89712267,168.47,168.36,0.34]
[1762195573026,4.89712267,168.47,168.34,50.0]
[1762195573027,4.89712267,168.45,168.37,5.93930035]
[1762195573229,4.89712267,168.44,168.37,5.93930035]
[1762195573443,5.59712267,168.44,168.35,5.93991564]
[1762195573651,0.7,168.43,168.35,20.78993049]
[1762195573839,0.7,168.43,168.36,0.34]
[1762195574245,0.7,168.43,168.37,20.78755122]
[1762195574851,13.22,168.45,168.37,21.12755122]
[1762195575057,0.7,168.44,168.37,21.12755122]
[1762195575641,10.8322249,168.49,168.38,10.12882769]
[1762195575961,0.7,168.46,168.38,10.12882769]
[1762195576340,0.7,168.46,168.39,20.78508224]
[1762195576734,4.89712267,168.49,168.39,20.78508224]
[1762195576735,3.87775573,168.49,168.4,10.12882769]
[1762195576935,4.98598502,168.53,168.39,20.78508224]
[1762195576936,4.89712267,168.46,168.39,5.93859492]
[1762195577168,13.2,168.48,168.39,5.93859492]
[1762195577169,5.59712267,168.45,168.39,5.93859492]
[1762195577465,4.89712267,168.44,168.37,14.84754115]
[1762195577671,4.89712267,168.43,168.37,14.84754115]
[1762195577834,5.59712267,168.43,168.37,14.84754115]
[1762195578470,5.59712267,168.43,168.35,5.93996493]
[1762195578471,5.59712267,168.42,168.35,5.93996493]
[1762195578636,18.11712267,168.42,168.35,20.78997978]
[1762195578838,0.7,168.41,168.35,20.78997978]
[1762195579559,13.22,168.43,168.35,21.12997978]
[1762195579963,0.7,168.42,168.35,21.12997978]
[1762195580461,31.37154729,168.48,168.36,10.12882769]
[1762195580762,13.22,168.44,168.36,10.12882769]
[1762195581249,0.7,168.43,168.36,10.12882769]
[1762195582252,0.7,168.43,168.35,50.49000948]
[1762195582451,4.58495167,168.43,168.35,14.85001485]
[1762195582949,0.7,168.42,168.35,14.85001485]
[1762195583872,4.89712267,168.4,168.34,5.94035879]
[1762195584085,8.78207434,168.4,168.34,5.94035879]
[1762195584385,0.7,168.39,168.34,20.79125578]
[1762195584562,0.7,168.39,168.32,5.94106463]
[1762195584756,0.7,168.39,168.32,20.79372622]
[1762195585842,0.7,168.39,168.32,5.94106463]
[1762195586047,0.7,168.39,168.3,30.38082769]
[1762195586048,4.89712267,168.35,168.3,5.94175875]
[1762195586246,0.7,168.34,168.3,5.94175875]
[1762195586479,3.88495167,168.37,168.3,26.53375875]
[1762195586670,12.5,168.38,168.31,10.12882769]
[1762195586988,0.7,168.37,168.31,9.78882769]
[1762195588066,0.7,168.37,168.34,20.592]
[1762195588591,0.7,168.37,168.35,5.94000594]
[1762195589162,12.5,168.41,168.35,20.79002079]
[1762195589383,3.88603199,168.4,168.35,21.13002079]
[1762195589578,4.56603199,168.4,168.35,20.79002079]
[1762195589787,0.68,168.39,168.35,20.79002079]
[1762195590174,4.56603199,168.39,168.35,20.79002079]
[1762195590370,0.68,168.39,168.35,20.79002079]
[1762195590721,0.68,168.44,168.38,20.592]
[1762195590863,3.89024554,168.43,168.38,20.592]
[1762195591295,3.89024554,168.43,168.38,20.932]
[1762195591799,0.68,168.43,168.38,20.592]
[1762195592005,0.68,168.42,168.38,20.592]
[1762195592513,0.68,168.42,168.4,5.93824228]
[1762195593577,3.89024554,168.47,168.4,20.78384798]
[1762195593784,0.71,168.44,168.4,20.78384798]
[1762195597487,0.71,168.46,168.41,9.78882769]
[1762195597886,3.89024554,168.5,168.41,30.72082769]
[1762195598085,0.71,168.51,168.45,9.78882769]
[1762195598310,0.71,168.51,168.48,20.592]
[1762195598816,0.71,168.51,168.45,22.26882769]
[1762195599317,0.71,168.51,168.5,7.54120978]
[1762195599884,3.89024554,168.54,168.5,7.54120978]
[1762195600091,0.71,168.51,168.46,21.11644544]
[1762195600284,0.71,168.51,168.46,20.77644544]
[1762195601302,0.71,168.51,168.5,7.54120978]
[1762195602818,0.71,168.51,168.5,13.47592788]
[1762195603289,0.71,168.53,168.5,13.47592788]
[1762195603489,0.71,168.53,168.52,7.54120978]
[1762195604207,0.71,168.53,168.51,7.54120978]
[1762195604625,11.43145532,168.52,168.43,14.84230601]
[1762195604787,7.54120978,168.48,168.43,7.54120978]
[1762195605185,7.54120978,168.48,168.46,7.54120978]
[1762195605186,0.71,168.48,168.46,7.54120978]
[1762195605498,13.17,168.5,168.47,7.54120978]
[1762195605684,12.46,168.5,168.44,20.592]
[1762195605890,0.71,168.49,168.48,7.54120978]
[1762195606905,4.60650756,168.49,168.48,7.54120978]
[1762195607126,4.60650756,168.49,168.45,9.78882769]
[1762195607127,4.60650756,168.49,168.45,13.4775869]
[1762195607290,4.60650756,168.48,168.43,5.93714772]
[1762195607493,0.71,168.48,168.44,7.54120978]
[1762195607803,0.71,168.47,168.45,7.54120978]
[1762195608188,25.19850756,168.47,168.35,0.34]
[1762195608383,7.54120978,168.44,168.39,7.54120978]
[1762195608697,12.46,168.43,168.38,7.54120978]
[1762195608908,11.43938682,168.42,168.37,7.54120978]
[1762195609212,12.14938682,168.42,168.37,7.54120978]
[1762195609417,0.71,168.41,168.37,7.54120978]
[1762195609722,0.71,168.41,168.36,7.54120978]
[1762195610084,0.14216157,168.4,168.35,7.54120978]
[1762195610283,32.17354839,168.4,168.34,7.54120978]
[1762195610507,4.60817704,168.39,168.34,7.54120978]
[1762195610790,12.44,168.38,168.35,7.54120978]
[1762195611001,13.15,168.38,168.34,5.940256]
[1762195611191,12.44,168.38,168.34,5.940256]
[1762195611386,0.71,168.37,168.32,5.94106463]
[1762195612406,4.60630647,168.37,168.32,5.94106463]
[1762195612606,0.71,168.36,168.32,5.94106463]
[1762195612916,13.15,168.36,168.31,5.94141762]
[1762195613294,13.15,168.36,168.31,6.28141762]
[1762195613494,13.15,168.36,168.31,21.13496167]
[1762195613996,0.71,168.38,168.32,10.12882769]
[1762195614194,13.15,168.38,168.32,10.12882769]
[1762195614909,12.44,168.38,168.32,10.12882769]
[1762195615108,12.44,168.38,168.33,20.79249093]
[1762195615307,13.15,168.38,168.33,20.79249093]
[1762195615500,0.71,168.37,168.33,5.94071169]
[1762195616109,12.44,168.38,168.33,5.94071169]
[1762195616316,13.15,168.38,168.33,5.94071169]
[1762195616809,12.44,168.38,168.34,0.34]
[1762195617021,12.44,168.38,168.33,21.13249093]
[1762195617433,0.71,168.38,168.33,21.13249093]
[1762195618036,12.42,168.39,168.34,0.34]
[1762195618411,12.42,168.39,168.33,20.79249093]
[1762195618412,13.13,168.39,168.33,20.79249093]
[1762195621006,6.07909258,168.44,168.33,20.79249093]
[1762195621007,13.11,168.41,168.34,0.34]
[1762195621214,13.11,168.41,168.34,10.12882769]
[1762195621413,0.71,168.4,168.34,0.34]
[1762195621625,0.71,168.4,168.33,20.79249093]
[1762195621828,4.60285307,168.4,168.33,20.79249093]
[1762195622129,0.71,168.4,168.33,20.79249093]
[1762195622336,0.66,168.39,168.33,20.79249093]
[1762195624101,7.55503135,168.38,168.33,5.94071169]
[1762195624298,7.55503135,168.37,168.32,5.9409787]
[1762195624501,12.4,168.36,168.29,10.12882769]
[1762195624814,13.06,168.36,168.3,20.79619725]
[1762195625018,0.66,168.39,168.32,20.592]
[1762195625223,0.66,168.39,168.33,10.12882769]
[1762195625535,0.66,168.38,168.3,20.79619725]
[1762195625709,0.66,168.38,168.31,10.12882769]
[1762195625917,0.66,168.38,168.31,9.78882769]
[1762195626326,0.66,168.38,168.33,9.78882769]
[1762195626634,0.66,168.39,168.35,30.38082769]
[1762195627415,19.99503135,168.38,168.32,5.94073099]
[1762195627615,19.99503135,168.38,168.27,29.71392393]
[1762195627616,7.55503135,168.36,168.27,29.71392393]
[1762195627834,7.55503135,168.36,168.25,20.80237741]
[1762195628032,8.21503135,168.35,168.26,9.78882769]
[1762195628251,7.55503135,168.3,168.24,5.9438008]
[1762195628417,20.01503135,168.29,168.22,20.80608726]
[1762195628935,8.21503135,168.28,168.22,5.94459636]
[1762195629138,7.55503135,168.26,168.22,5.94459636]
[1762195629312,0.66,168.25,168.21,5.9448886]
[1762195629646,0.66,168.25,168.21,20.80726301]
[1762195630417,0.66,168.25,168.21,14.86237441]
[1762195631040,0.66,168.25,168.17,20.592]
[1762195631225,7.55503135,168.23,168.17,5.94618761]
[1762195631413,7.55503135,168.23,168.14,0.34]
[1762195631414,20.01503135,168.22,168.14,5.9471951]
[1762195631742,12.46,168.22,168.14,20.81575701]
[1762195632051,0.66,168.21,168.15,10.12882769]
[1762195632356,0.66,168.21,168.14,20.81575701]
[1762195632557,0.66,168.21,168.14,14.86856191]
[1762195633833,4.84382345,168.3,168.15,30.72082769]
[1762195634039,0.66,168.24,168.15,30.38082769]
[1762195634447,0.66,168.24,168.18,20.592]
[1762195634636,0.66,168.24,168.19,50.53808191]
[1762195635253,0.66,168.24,168.19,20.80979843]
[1762195635764,0.66,168.24,168.17,5.94636379]
[1762195635943,7.55503135,168.22,168.17,5.94636379]
[1762195636146,20.05503135,168.22,168.17,5.94636379]
[1762195636356,7.55503135,168.2,168.14,5.94742476]
[1762195636655,7.55503135,168.2,168.12,5.94813228]
[1762195636847,8.21503135,168.19,168.12,20.81846299]
[1762195637242,0.66,168.18,168.12,20.81846299]
[1762195637844,0.66,168.18,168.12,50.89912442]
[1762195638461,0.66,168.18,168.12,50.55912442]
[1762195639436,0.66,168.18,168.12,20.81846299]
[1762195640865,0.66,168.2,168.13,10.12882769]
[1762195641043,0.66,168.2,168.15,9.78882769]
[1762195642536,7.55503135,168.27,168.18,20.592]
[1762195642752,12.48,168.28,168.18,20.592]
[1762195643139,0.66,168.27,168.19,20.80979843]
[1762195644959,12.06746598,168.27,168.19,20.80979843]
[1762195645166,12.48,168.28,168.2,10.12882769]
[1762195645367,0.66,168.27,168.2,10.12882769]
[1762195647266,4.51839997,168.27,168.21,20.80732417]
[1762195647642,0.72,168.26,168.21,20.80732417]
[1762195648950,8.27503135,168.26,168.21,20.80732417]
[1762195649167,8.27503135,168.26,168.18,20.81103578]
[1762195649168,4.57839997,168.26,168.18,20.81103578]
[1762195649348,4.57839997,168.25,168.18,20.81103578]
[1762195649546,0.72,168.25,168.18,20.81103578]
[1762195650069,4.57839997,168.25,168.18,21.15103578]
[1762195650364,3.85839997,168.24,168.18,21.15103578]
[1762195650569,0.72,168.25,168.18,21.15103578]
[1762195650570,0.72,168.25,168.19,9.78882769]
[1762195650786,3.85839997,168.26,168.19,10.12882769]
[1762195650950,3.85839997,168.25,168.19,10.12882769]
[1762195651267,0.72,168.26,168.2,20.80856123]
[1762195651563,3.87387738,168.25,168.2,20.80856123]
[1762195651778,0.72,168.26,168.2,20.80856123]
[1762195651958,4.59400105,168.25,168.2,20.80856123]
[1762195652159,3.87400105,168.24,168.2,20.80856123]
[1762195652371,0.67,168.24,168.2,20.80856123]
[1762195652759,3.87389803,168.23,168.15,5.94707106]
[1762195652967,21.25811883,168.22,168.16,14.86667247]
[1762195653147,3.87389803,168.21,168.15,5.94707106]
[1762195653352,3.87389803,168.2,168.14,20.81582376]
[1762195653549,3.87389803,168.19,168.14,20.81582376]
[1762195653748,0.67,168.21,168.15,10.12882769]
[1762195653962,3.8757987,168.2,168.15,30.72082769]
[1762195654248,3.8757987,168.21,168.16,0.34]
[1762195654564,0.67,168.23,168.16,0.34]
[1762195654772,4.54692438,168.22,168.16,0.34]
[1762195655066,3.87692438,168.21,168.16,0.34]
[1762195655258,0.67,168.22,168.17,20.81227328]
[1762195655460,3.8771731,168.21,168.17,20.81227328]
[1762195655764,0.67,168.22,168.17,20.81227328]
[1762195655970,3.87723022,168.21,168.17,20.81227328]
[1762195656277,0.67,168.22,168.17,50.54409227]
[1762195656455,3.87710945,168.21,168.17,50.54409227]
[1762195656657,0.67,168.22,168.17,50.54409227]
[1762195656953,17.30382345,168.25,168.18,10.12882769]
[1762195656954,13.13,168.25,168.18,10.12882769]
[1762195657174,3.87720767,168.24,168.18,10.12882769]
[1762195657452,3.8778032,168.23,168.19,20.80979843]
[1762195657673,0.67,168.24,168.19,20.80979843]
[1762195657853,4.54659575,168.23,168.19,20.80979843]
[1762195658056,0.67,168.23,168.19,20.80979843]
[1762195658476,13.13,168.25,168.19,20.80979843]
[1762195658656,3.87667016,168.24,168.19,20.80979843]
[1762195658858,3.87667016,168.23,168.19,20.80979843]
[1762195659185,3.87682378,168.24,168.2,10.12882769]
[1762195659479,0.67,168.26,168.21,20.80732417]
[1762195659683,3.87783205,168.25,168.21,20.80732417]
[1762195659982,0.67,168.28,168.21,20.80732417]
[1762195660276,3.87797092,168.27,168.21,50.53207299]
[1762195660454,3.87797092,168.26,168.21,50.53207299]
[1762195660658,3.87797092,168.25,168.21,20.80732417]
[1762195660858,0.67,168.28,168.21,20.80732417]
[1762195661058,3.87895704,168.27,168.21,20.80732417]
[1762195661259,3.87895704,168.26,168.22,10.12882769]
[1762195661486,13.13,168.29,168.23,5.944243]
[1762195661666,3.87931538,168.28,168.23,20.8048505]
[1762195661868,0.67,168.31,168.24,30.72082769]
[1762195662070,3.87735837,168.3,168.24,30.72082769]
[1762195662277,3.87735837,168.29,168.24,30.72082769]
[1762195662488,0.67,168.3,168.24,30.72082769]
[1762195662864,3.87850859,168.29,168.24,30.72082769]
[1762195663081,0.67,168.3,168.24,30.72082769]
[1762195663272,3.87896972,168.32,168.25,12.78]
[1762195663475,3.88061096,168.31,168.27,9.78882769]
[1762195663783,0.67,168.32,168.27,9.78882769]
[1762195663982,0.67,168.32,168.27,10.12882769]
[1762195664176,13.11,168.34,168.27,10.12882769]
[1762195664374,3.88143319,168.33,168.28,0.34]
[1762195664585,0.67,168.35,168.29,9.78882769]
[1762195664772,3.88338924,168.34,168.29,9.78882769]
[1762195664972,0.67,168.35,168.29,9.78882769]
[1762195665173,3.88333464,168.34,168.29,9.78882769]
[1762195665575,0.67,168.33,168.3,20.79619725]
[1762195665796,0.67,168.34,168.3,20.79619725]
[1762195665986,3.88333464,168.36,168.3,20.79619725]
[1762195666185,3.88333464,168.35,168.31,9.78882769]
[1762195666375,4.55333464,168.37,168.31,10.12882769]
[1762195666573,3.88333464,168.36,168.31,10.12882769]
[1762195666790,3.88609109,168.36,168.31,10.12882769]
[1762195667492,3.88609109,168.36,168.33,9.78882769]
[1762195667696,4.55609109,168.36,168.33,9.78882769]
[1762195667994,0.67,168.36,168.33,9.78882769]
[1762195668783,3.88609109,168.36,168.33,9.78882769]
[1762195668978,4.55609109,168.38,168.33,9.78882769]
[1762195669180,3.88609109,168.37,168.33,9.78882769]
[1762195669469,3.88609109,168.36,168.34,5.94035879]
[1762195669679,0.67,168.37,168.34,5.94035879]
[1762195669995,4.55609109,168.37,168.34,5.94035879]
[1762195670295,3.88609109,168.36,168.34,20.79125578]
[1762195671305,3.88823272,168.35,168.34,20.79125578]
[1762195671599,4.55823272,168.35,168.29,5.94212371]
[1762195671796,4.55823272,168.34,168.29,5.94212371]
[1762195671997,4.55823272,168.36,168.3,9.78882769]
[1762195672174,3.88823272,168.35,168.3,9.78882769]
[1762195672376,3.88823272,168.34,168.3,9.78882769]
[1762195672694,3.88823272,168.35,168.3,9.78882769]
[1762195672906,3.88823272,168.34,168.3,9.78882769]
[1762195673200,4.56021685,168.33,168.29,20.79743299]
[1762195673509,0.67,168.33,168.29,20.79743299]
[1762195674097,4.84813574,168.38,168.29,50.50805156]
[1762195674303,0.67,168.36,168.3,9.78882769]
[1762195674476,3.88876695,168.35,168.3,9.78882769]
[1762195674877,3.88876695,168.35,168.31,0.34]
[1762195675099,3.88876695,168.37,168.31,12.74]
[1762195675289,3.88876695,168.36,168.31,12.74]
[1762195675485,3.88876695,168.36,168.33,20.79249093]
[1762195675793,12.44,168.39,168.33,20.79249093]
[1762195675794,0.67,168.35,168.33,20.79249093]
[1762195675999,3.88876695,168.34,168.33,5.94071169]
[1762195676394,4.55876695,168.34,168.32,5.94098217]
[1762195676708,0.67,168.34,168.32,5.94098217]
[1762195677080,3.88876695,168.35,168.32,5.94098217]